[Event "*** Titled Tuesday Blitz"]
[Site "Chess.com"]
[Date "2021.03.09"]
[Round "11"]
[White "BanjoKazooieN64"]
[Black "hypert"]
[Result "1-0"]
[WhiteElo "2419"]
[BlackElo "2501"]
[TimeControl "180+1"]
[EndTime "12:10:10 PST"]
[Termination "BanjoKazooieN64 won by resignation"]

1. e4 {[%clk 0:03:00.9]} 1... c5 {[%clk 0:02:59.3]} 2. Nc3 {[%clk 0:03:00.3]}
2... Nc6 {[%clk 0:02:59.3]} 3. Nf3 {[%clk 0:02:52.8]} 3... e5 {[%clk 0:02:57.9]}
4. Bc4 {[%clk 0:02:52.4]} 4... Be7 {[%clk 0:02:57.7]} 5. d3 {[%clk 0:02:52.8]}
5... d6 {[%clk 0:02:58.1]} 6. O-O {[%clk 0:02:52.9]} 6... Nf6 {[%clk 0:02:58.2]}
7. Ng5 {[%clk 0:02:53.3]} 7... O-O {[%clk 0:02:58.7]} 8. f4 {[%clk 0:02:53.6]}
8... Bg4 {[%clk 0:02:55.7]} 9. Nf3 {[%clk 0:02:51.7]} 9... exf4 {[%clk
0:02:54.1]} 10. Bxf4 {[%clk 0:02:50.9]} 10... Ne5 {[%clk 0:02:42.8]} 11. Bxe5
{[%clk 0:02:49.3]} 11... dxe5 {[%clk 0:02:43.7]} 12. h3 {[%clk 0:02:49.4]} 12...
Bxf3 {[%clk 0:02:42.7]} 13. Qxf3 {[%clk 0:02:49.3]} 13... a6 {[%clk 0:02:39.4]}
14. a4 {[%clk 0:02:47.9]} 14... Kh8 {[%clk 0:02:38.5]} 15. Qf5 {[%clk
0:02:45.2]} 15... Bd6 {[%clk 0:02:32.7]} 16. Rf3 {[%clk 0:02:43]} 16... Qc8
{[%clk 0:02:29.5]} 17. Qg5 {[%clk 0:02:40.7]} 17... h6 {[%clk 0:02:26.7]} 18.
Qh4 {[%clk 0:02:38.5]} 18... Be7 {[%clk 0:02:22.9]} 19. Raf1 {[%clk 0:02:38.3]}
19... Nd5 {[%clk 0:01:49.8]} 20. Qh5 {[%clk 0:02:30.2]} 20... Nxc3 {[%clk
0:01:40]} 21. bxc3 {[%clk 0:02:30.3]} 21... f6 {[%clk 0:01:40.4]} 22. Rg3 {[%clk
0:02:19.8]} 22... Qe8 {[%clk 0:01:33.1]} 23. Rg6 {[%clk 0:02:19.4]} 23... Kh7
{[%clk 0:01:28.6]} 24. Be6 {[%clk 0:02:14.4]} 24... f5 {[%clk 0:01:17.2]} 25.
Bxf5 {[%clk 0:02:10.2]} 25... Rxf5 {[%clk 0:01:08.6]} 26. exf5 {[%clk
0:02:08.2]} 26... Bf6 {[%clk 0:01:07.5]} 27. Qg4 {[%clk 0:01:54.7]} 27... b5
{[%clk 0:01:07.4]} 28. axb5 {[%clk 0:01:50.5]} 28... axb5 {[%clk 0:01:08.3]} 29.
Rf3 {[%clk 0:01:39.1]} 29... Ra4 {[%clk 0:01:08.4]} 30. c4 {[%clk 0:01:35.9]}
30... Ra1+ {[%clk 0:01:01.6]} 31. Kh2 {[%clk 0:01:35.7]} 31... b4 {[%clk
0:00:55]} 32. Rg3 {[%clk 0:01:30.6]} 32... Qf7 {[%clk 0:00:54.7]} 33. Qh5 {[%clk
0:01:27.7]} 33... Ra7 {[%clk 0:00:50.7]} 34. R3g4 {[%clk 0:01:17.8]} 34... Re7
{[%clk 0:00:49.5]} 35. Re4 {[%clk 0:01:11.4]} 35... Rd7 {[%clk 0:00:48.3]} 36.
h4 {[%clk 0:01:07.6]} 36... Qe7 {[%clk 0:00:48.1]} 37. Qg4 {[%clk 0:01:04.7]}
37... Rd4 {[%clk 0:00:47.3]} 38. Kh3 {[%clk 0:01:00.4]} 38... Rxe4 {[%clk
0:00:46.9]} 39. Qxe4 {[%clk 0:01:00.5]} 39... Qd7 {[%clk 0:00:46.5]} 40. g4
{[%clk 0:00:57.9]} 40... Qd8 {[%clk 0:00:43.9]} 41. g5 {[%clk 0:00:34]} 41...
hxg5 {[%clk 0:00:43.9]} 42. hxg5 {[%clk 0:00:34.9]} 42... Bxg5 {[%clk
0:00:44.2]} 43. Qxe5 {[%clk 0:00:35]} 43... Bf6 {[%clk 0:00:43.7]} 44. Qxc5
{[%clk 0:00:31.5]} 44... Qa8 {[%clk 0:00:44]} 45. Qd5 {[%clk 0:00:28.7]} 45...
Qa7 {[%clk 0:00:40.1]} 46. Qf3 {[%clk 0:00:25.2]} 46... Qe7 {[%clk 0:00:39.3]}
47. Rg4 {[%clk 0:00:17.4]} 47... Qe1 {[%clk 0:00:38.3]} 48. Re4 {[%clk
0:00:16.7]} 48... Qd2 {[%clk 0:00:33.8]} 49. Qh5+ {[%clk 0:00:16.1]} 49... Qh6
{[%clk 0:00:32.5]} 50. Qxh6+ {[%clk 0:00:16.3]} 50... Kxh6 {[%clk 0:00:33.4]}
51. Kg4 {[%clk 0:00:16.6]} 51... b3 {[%clk 0:00:32]} 52. cxb3 {[%clk 0:00:16.4]}
52... g6 {[%clk 0:00:32.4]} 53. fxg6 {[%clk 0:00:16.3]} 53... Kxg6 {[%clk
0:00:32.7]} 54. b4 {[%clk 0:00:16.8]} 54... Kh7 {[%clk 0:00:32.9]} 55. b5 {[%clk
0:00:17]} 55... Bd4 {[%clk 0:00:33]} 56. Rxd4 {[%clk 0:00:16.7]} 1-0

[Event "*** Titled Tuesday Blitz"]
[Site "Chess.com"]
[Date "2021.03.09"]
[Round "11"]
[White "Steegersee"]
[Black "Piotrek1979"]
[Result "0-1"]
[WhiteElo "2258"]
[BlackElo "2358"]
[TimeControl "180+1"]
[EndTime "12:10:10 PST"]
[Termination "Piotrek1979 won by checkmate"]

1. d4 {[%clk 0:02:43.9]} 1... Nf6 {[%clk 0:02:58.3]} 2. c4 {[%clk 0:02:42.2]}
2... g6 {[%clk 0:02:57.2]} 3. g3 {[%clk 0:02:41.7]} 3... Bg7 {[%clk 0:02:56.8]}
4. Bg2 {[%clk 0:02:42.2]} 4... O-O {[%clk 0:02:56.6]} 5. Nc3 {[%clk 0:02:42.6]}
5... d6 {[%clk 0:02:56.2]} 6. Nf3 {[%clk 0:02:43.2]} 6... Nc6 {[%clk 0:02:56]}
7. O-O {[%clk 0:02:43.4]} 7... Bg4 {[%clk 0:02:54.1]} 8. d5 {[%clk 0:02:37]}
8... Na5 {[%clk 0:02:52.7]} 9. Qd3 {[%clk 0:02:32.8]} 9... c5 {[%clk 0:02:51.9]}
10. h3 {[%clk 0:02:26.8]} 10... Bd7 {[%clk 0:02:49.4]} 11. a3 {[%clk 0:02:12.6]}
11... Nb3 {[%clk 0:02:47.4]} 12. Rb1 {[%clk 0:02:10.9]} 12... Nxc1 {[%clk
0:02:43.9]} 13. Rfxc1 {[%clk 0:02:07.4]} 13... a6 {[%clk 0:02:43.5]} 14. b4
{[%clk 0:02:04.9]} 14... b6 {[%clk 0:02:27.5]} 15. e4 {[%clk 0:02:01.6]} 15...
Qc7 {[%clk 0:02:22.1]} 16. Qe2 {[%clk 0:01:49.5]} 16... Rfc8 {[%clk 0:02:17]}
17. e5 {[%clk 0:01:34.1]} 17... Ne8 {[%clk 0:02:15.1]} 18. e6 {[%clk 0:01:26.3]}
18... fxe6 {[%clk 0:02:10.1]} 19. dxe6 {[%clk 0:01:27.2]} 19... Bc6 {[%clk
0:02:09.9]} 20. Nd5 {[%clk 0:01:27]} 20... Bxd5 {[%clk 0:02:09]} 21. cxd5 {[%clk
0:01:27.9]} 21... c4 {[%clk 0:01:57.6]} 22. Rc2 {[%clk 0:01:09.9]} 22... b5
{[%clk 0:01:56.3]} 23. Rd1 {[%clk 0:01:07.8]} 23... a5 {[%clk 0:01:55.5]} 24.
Nd4 {[%clk 0:01:07.1]} 24... axb4 {[%clk 0:01:53]} 25. axb4 {[%clk 0:01:08]}
25... Bxd4 {[%clk 0:01:51.4]} 26. Rxd4 {[%clk 0:01:08.9]} 26... Nf6 {[%clk
0:01:51.2]} 27. g4 {[%clk 0:01:03.9]} 27... Qb6 {[%clk 0:01:48.2]} 28. Rf4
{[%clk 0:01:02.7]} 28... Rf8 {[%clk 0:01:47.8]} 29. g5 {[%clk 0:00:56.3]} 29...
Nh5 {[%clk 0:01:46.6]} 30. Re4 {[%clk 0:00:56.6]} 30... Rf5 {[%clk 0:01:42.5]}
31. h4 {[%clk 0:00:41.8]} 31... Raf8 {[%clk 0:01:26.8]} 32. Qe3 {[%clk
0:00:33.6]} 32... Qxe3 {[%clk 0:01:24.3]} 33. Rxe3 {[%clk 0:00:34.5]} 33... Rf4
{[%clk 0:01:22.6]} 34. Rh3 {[%clk 0:00:30.9]} 34... Rd4 {[%clk 0:01:22]} 35. Ra2
{[%clk 0:00:28.1]} 35... Nf4 {[%clk 0:01:20.9]} 36. Rf3 {[%clk 0:00:23.5]} 36...
Rc8 {[%clk 0:01:09.4]} 37. Rc3 {[%clk 0:00:16.9]} 37... Rd1+ {[%clk 0:01:07.3]}
38. Kh2 {[%clk 0:00:16.2]} 38... Nxg2 {[%clk 0:01:06.8]} 39. Kxg2 {[%clk
0:00:17.1]} 39... Rxd5 {[%clk 0:01:06.9]} 40. Ra7 {[%clk 0:00:16.9]} 40... Kf8
{[%clk 0:01:06.4]} 41. Rf3+ {[%clk 0:00:16.2]} 41... Rf5 {[%clk 0:01:05.3]} 42.
Rc3 {[%clk 0:00:13.3]} 42... d5 {[%clk 0:00:58]} 43. Rd7 {[%clk 0:00:11.1]}
43... Rc6 {[%clk 0:00:57.6]} 44. Rd8+ {[%clk 0:00:07.4]} 44... Kg7 {[%clk
0:00:56.4]} 45. Rb8 {[%clk 0:00:08]} 45... d4 {[%clk 0:00:55.1]} 46. Rb7 {[%clk
0:00:07.1]} 46... dxc3 {[%clk 0:00:51.6]} 47. Rxe7+ {[%clk 0:00:07.1]} 47... Kf8
{[%clk 0:00:51.4]} 48. Rxh7 {[%clk 0:00:02]} 48... c2 {[%clk 0:00:50.8]} 49. Rb7
{[%clk 0:00:02.4]} 49... Rxe6 {[%clk 0:00:47.4]} 50. h5 {[%clk 0:00:02.5]} 50...
gxh5 {[%clk 0:00:46.4]} 51. g6 {[%clk 0:00:02.2]} 51... Rxg6+ {[%clk 0:00:46]}
52. Kh3 {[%clk 0:00:01.8]} 52... c1=Q {[%clk 0:00:43.3]} 53. f4 {[%clk
0:00:02.7]} 53... Qh1# {[%clk 0:00:42.5]} 0-1

[Event "*** Titled Tuesday Blitz"]
[Site "Chess.com"]
[Date "2021.03.09"]
[Round "11"]
[White "esrosenberg"]
[Black "rachidhuilda"]
[Result "0-1"]
[WhiteElo "2124"]
[BlackElo "2275"]
[TimeControl "180+1"]
[EndTime "12:10:10 PST"]
[Termination "rachidhuilda won on time"]

1. Nf3 {[%clk 0:03:00.9]} 1... d5 {[%clk 0:02:59.7]} 2. c4 {[%clk 0:03:00.7]}
2... c6 {[%clk 0:02:59.7]} 3. d4 {[%clk 0:03:01]} 3... Nf6 {[%clk 0:02:59.7]} 4.
Nc3 {[%clk 0:03:01.6]} 4... e6 {[%clk 0:02:59.7]} 5. Bg5 {[%clk 0:03:02]} 5...
h6 {[%clk 0:02:59.2]} 6. Bxf6 {[%clk 0:03:00.3]} 6... Qxf6 {[%clk 0:02:59.3]} 7.
Qb3 {[%clk 0:03:01]} 7... a5 {[%clk 0:02:51.8]} 8. e4 {[%clk 0:02:43.6]} 8...
dxe4 {[%clk 0:02:36.1]} 9. Nxe4 {[%clk 0:02:43.2]} 9... Qf4 {[%clk 0:02:31]} 10.
Bd3 {[%clk 0:02:40]} 10... a4 {[%clk 0:02:28.2]} 11. Qc2 {[%clk 0:02:28.9]}
11... Bb4+ {[%clk 0:02:25.2]} 12. Nc3 {[%clk 0:02:15.3]} 12... c5 {[%clk
0:01:50.7]} 13. O-O {[%clk 0:02:10.1]} 13... cxd4 {[%clk 0:01:32.6]} 14. Ne2
{[%clk 0:01:52.1]} 14... Qf6 {[%clk 0:01:31.2]} 15. Nexd4 {[%clk 0:01:46.5]}
15... O-O {[%clk 0:01:26.7]} 16. a3 {[%clk 0:01:46.4]} 16... Bc5 {[%clk
0:01:24.9]} 17. Rad1 {[%clk 0:01:40.4]} 17... Nc6 {[%clk 0:01:20.7]} 18. Nxc6
{[%clk 0:01:39.2]} 18... bxc6 {[%clk 0:01:21.2]} 19. Be4 {[%clk 0:01:39.8]}
19... Ra6 {[%clk 0:01:01.2]} 20. Rd2 {[%clk 0:01:29.8]} 20... Bb7 {[%clk
0:00:47.4]} 21. Rd7 {[%clk 0:01:17.6]} 21... Rb6 {[%clk 0:00:47.3]} 22. Qxa4
{[%clk 0:00:59]} 22... Rxb2 {[%clk 0:00:47]} 23. Bxc6 {[%clk 0:00:38.9]} 23...
Bxc6 {[%clk 0:00:40.9]} 24. Qxc6 {[%clk 0:00:38.8]} 24... Bxa3 {[%clk
0:00:40.9]} 25. Qe4 {[%clk 0:00:29.7]} 25... Bc5 {[%clk 0:00:25.8]} 26. Rd2
{[%clk 0:00:26.2]} 26... Rfb8 {[%clk 0:00:22]} 27. Rxb2 {[%clk 0:00:17.6]} 27...
Rxb2 {[%clk 0:00:22.6]} 28. h3 {[%clk 0:00:15.7]} 28... g6 {[%clk 0:00:22.8]}
29. Qa8+ {[%clk 0:00:15.4]} 29... Kg7 {[%clk 0:00:22.4]} 30. Qc6 {[%clk
0:00:15.6]} 30... Qe7 {[%clk 0:00:20]} 31. Qe4 {[%clk 0:00:15.1]} 31... Qf6
{[%clk 0:00:19.6]} 32. Qc6 {[%clk 0:00:12.6]} 32... Qe7 {[%clk 0:00:19.5]} 33.
Qa4 {[%clk 0:00:11.5]} 33... Qf6 {[%clk 0:00:18]} 34. Qa1 {[%clk 0:00:09.7]}
34... Rb6 {[%clk 0:00:14.9]} 35. Qxf6+ {[%clk 0:00:09]} 35... Kxf6 {[%clk
0:00:15.8]} 36. g3 {[%clk 0:00:08.2]} 36... Rb3 {[%clk 0:00:15]} 37. Kg2 {[%clk
0:00:08.6]} 37... Rb2 {[%clk 0:00:14.9]} 38. g4 {[%clk 0:00:07.3]} 38... e5
{[%clk 0:00:14.8]} 39. Kg3 {[%clk 0:00:07]} 39... e4 {[%clk 0:00:14.2]} 40. Ne1
{[%clk 0:00:05.9]} 40... Ke5 {[%clk 0:00:13.6]} 41. f4+ {[%clk 0:00:04.7]} 41...
Kd4 {[%clk 0:00:13.2]} 42. f5 {[%clk 0:00:04.6]} 42... g5 {[%clk 0:00:13.3]} 43.
f6 {[%clk 0:00:04.5]} 43... Bd6+ {[%clk 0:00:12.7]} 0-1

[Event "*** Titled Tuesday Blitz"]
[Site "Chess.com"]
[Date "2021.03.09"]
[Round "11"]
[White "Nf3c5"]
[Black "Mikasinski"]
[Result "0-1"]
[WhiteElo "2619"]
[BlackElo "2494"]
[TimeControl "180+1"]
[EndTime "12:10:12 PST"]
[Termination "Mikasinski won by resignation"]

1. d4 {[%clk 0:02:58.8]} 1... Nf6 {[%clk 0:02:59.9]} 2. Bf4 {[%clk 0:02:58.1]}
2... g6 {[%clk 0:02:59.4]} 3. Nc3 {[%clk 0:02:57.6]} 3... d5 {[%clk 0:02:59.7]}
4. e3 {[%clk 0:02:57.5]} 4... Bg7 {[%clk 0:03:00.1]} 5. h4 {[%clk 0:02:57.7]}
5... h5 {[%clk 0:02:59.3]} 6. Nf3 {[%clk 0:02:57.1]} 6... O-O {[%clk 0:02:59.3]}
7. Ne5 {[%clk 0:02:56.8]} 7... Be6 {[%clk 0:02:58.8]} 8. Be2 {[%clk 0:02:56.8]}
8... c5 {[%clk 0:02:59.3]} 9. Rg1 {[%clk 0:02:47.9]} 9... Nc6 {[%clk 0:02:52.4]}
10. Qd2 {[%clk 0:02:38.8]} 10... cxd4 {[%clk 0:02:50.9]} 11. exd4 {[%clk
0:02:38.7]} 11... Qb6 {[%clk 0:02:51.5]} 12. O-O-O {[%clk 0:02:38.1]} 12... Rac8
{[%clk 0:02:30.2]} 13. f3 {[%clk 0:02:33.2]} 13... Rfd8 {[%clk 0:01:38]} 14. Na4
{[%clk 0:02:13.3]} 14... Qb4 {[%clk 0:01:27]} 15. Nxc6 {[%clk 0:01:57.1]} 15...
Qxd2+ {[%clk 0:01:19.4]} 16. Rxd2 {[%clk 0:01:56.7]} 16... Rxc6 {[%clk
0:01:19.7]} 17. Nc5 {[%clk 0:01:56.8]} 17... Bc8 {[%clk 0:01:13.1]} 18. Bb5
{[%clk 0:01:50.6]} 18... Rb6 {[%clk 0:00:58.9]} 19. a4 {[%clk 0:01:50.4]} 19...
Ne8 {[%clk 0:00:47.7]} 20. Re1 {[%clk 0:01:45]} 20... Kf8 {[%clk 0:00:44.3]} 21.
Bg5 {[%clk 0:01:42.3]} 21... Bf6 {[%clk 0:00:37.6]} 22. f4 {[%clk 0:01:32.2]}
22... Bxg5 {[%clk 0:00:35.1]} 23. hxg5 {[%clk 0:01:33.1]} 23... Nd6 {[%clk
0:00:35.3]} 24. Bd3 {[%clk 0:01:31]} 24... a5 {[%clk 0:00:32.5]} 25. Re5 {[%clk
0:01:30.4]} 25... Nf5 {[%clk 0:00:18.8]} 26. c3 {[%clk 0:01:26.4]} 26... e6
{[%clk 0:00:18.2]} 27. Bb5 {[%clk 0:01:23.7]} 27... Nd6 {[%clk 0:00:13]} 28. Bd3
{[%clk 0:01:23.4]} 28... Bd7 {[%clk 0:00:12.3]} 29. b3 {[%clk 0:01:23.2]} 29...
Be8 {[%clk 0:00:12]} 30. Kc2 {[%clk 0:01:17.6]} 30... Rc6 {[%clk 0:00:10.9]} 31.
Rde2 {[%clk 0:01:11.2]} 31... b6 {[%clk 0:00:09.1]} 32. Nxe6+ {[%clk 0:01:08.3]}
32... fxe6 {[%clk 0:00:09.1]} 33. Rxe6 {[%clk 0:01:09.2]} 33... Ne4 {[%clk
0:00:08.6]} 34. Rxc6 {[%clk 0:01:03.8]} 34... Bxc6 {[%clk 0:00:09.5]} 35. c4
{[%clk 0:01:03.7]} 35... Re8 {[%clk 0:00:06.4]} 36. Re3 {[%clk 0:00:59.1]} 36...
Nd6 {[%clk 0:00:05.9]} 37. Re5 {[%clk 0:00:58.1]} 37... dxc4 {[%clk 0:00:04.7]}
38. bxc4 {[%clk 0:00:56.6]} 38... Rxe5 {[%clk 0:00:04.7]} 39. fxe5 {[%clk
0:00:56.1]} 39... Nf5 {[%clk 0:00:04.3]} 40. Kc3 {[%clk 0:00:56.2]} 40... Bxg2
{[%clk 0:00:04.3]} 41. d5 {[%clk 0:00:56.1]} 41... h4 {[%clk 0:00:04.9]} 42.
Bxf5 {[%clk 0:00:41.9]} 42... gxf5 {[%clk 0:00:05.2]} 43. e6 {[%clk 0:00:42.8]}
43... h3 {[%clk 0:00:05.5]} 44. d6 {[%clk 0:00:42.7]} 44... h2 {[%clk 0:00:06]}
45. e7+ {[%clk 0:00:43.6]} 45... Ke8 {[%clk 0:00:06.2]} 46. g6 {[%clk
0:00:43.6]} 46... h1=Q {[%clk 0:00:06.6]} 47. g7 {[%clk 0:00:44.5]} 47... Qa1+
{[%clk 0:00:06.8]} 48. Kd2 {[%clk 0:00:44.1]} 48... Qxg7 {[%clk 0:00:07.7]} 49.
c5 {[%clk 0:00:43.7]} 49... Qd4+ {[%clk 0:00:07.7]} 50. Ke2 {[%clk 0:00:43.8]}
50... Qxc5 {[%clk 0:00:07.9]} 0-1

[Event "*** Titled Tuesday Blitz"]
[Site "Chess.com"]
[Date "2021.03.09"]
[Round "11"]
[White "anon102030"]
[Black "hellokostya"]
[Result "0-1"]
[WhiteElo "2666"]
[BlackElo "2544"]
[TimeControl "180+1"]
[EndTime "12:10:13 PST"]
[Termination "hellokostya won on time"]

1. e4 {[%clk 0:03:00.9]} 1... c5 {[%clk 0:02:59.2]} 2. Nc3 {[%clk 0:03:01.4]}
2... e6 {[%clk 0:02:59.7]} 3. g3 {[%clk 0:03:01.8]} 3... Nc6 {[%clk 0:02:59.6]}
4. Bg2 {[%clk 0:03:02.2]} 4... Nf6 {[%clk 0:03:00.3]} 5. d3 {[%clk 0:03:02.6]}
5... Be7 {[%clk 0:03:00.7]} 6. Nge2 {[%clk 0:02:59.3]} 6... O-O {[%clk
0:03:01.1]} 7. O-O {[%clk 0:02:59.7]} 7... Rb8 {[%clk 0:03:01.1]} 8. h3 {[%clk
0:02:58]} 8... b5 {[%clk 0:03:00.8]} 9. f4 {[%clk 0:02:56.1]} 9... b4 {[%clk
0:03:00.3]} 10. Nb1 {[%clk 0:02:56.7]} 10... d5 {[%clk 0:02:58.2]} 11. e5 {[%clk
0:02:52.8]} 11... Nd7 {[%clk 0:02:56.1]} 12. Nd2 {[%clk 0:02:53.7]} 12... f5
{[%clk 0:02:50.5]} 13. exf6 {[%clk 0:02:49.9]} 13... Bxf6 {[%clk 0:02:49.2]} 14.
Nf3 {[%clk 0:02:50]} 14... Kh8 {[%clk 0:02:44.7]} 15. g4 {[%clk 0:02:49.4]}
15... e5 {[%clk 0:02:37.5]} 16. f5 {[%clk 0:02:39.1]} 16... e4 {[%clk
0:02:31.4]} 17. dxe4 {[%clk 0:02:34.6]} 17... dxe4 {[%clk 0:02:32.3]} 18. Nd2
{[%clk 0:02:34.9]} 18... Bb7 {[%clk 0:02:19.9]} 19. Nxe4 {[%clk 0:02:34.3]}
19... Nd4 {[%clk 0:02:18]} 20. Nxf6 {[%clk 0:02:24.9]} 20... Nxf6 {[%clk
0:02:13.3]} 21. Nxd4 {[%clk 0:02:18.6]} 21... cxd4 {[%clk 0:02:11.9]} 22. Bf4
{[%clk 0:02:12.4]} 22... Bxg2 {[%clk 0:02:09.1]} 23. Kxg2 {[%clk 0:02:13.3]}
23... Rc8 {[%clk 0:02:02.7]} 24. Qd3 {[%clk 0:02:04.7]} 24... Qd5+ {[%clk
0:02:00.8]} 25. Kg1 {[%clk 0:02:00.7]} 25... Ne4 {[%clk 0:01:54.6]} 26. Rad1
{[%clk 0:01:55.3]} 26... Rfd8 {[%clk 0:01:47.8]} 27. Rfe1 {[%clk 0:01:38.8]}
27... Nc5 {[%clk 0:01:45.7]} 28. Qb5 {[%clk 0:01:13.1]} 28... h5 {[%clk
0:01:32]} 29. Qe2 {[%clk 0:00:44.1]} 29... Kh7 {[%clk 0:01:14]} 30. Be5 {[%clk
0:00:37.8]} 30... d3 {[%clk 0:00:58.2]} 31. cxd3 {[%clk 0:00:35.9]} 31... Nxd3
{[%clk 0:00:59.1]} 32. g5 {[%clk 0:00:25.9]} 32... g6 {[%clk 0:00:56.6]} 33. Bf6
{[%clk 0:00:18.9]} 33... Re8 {[%clk 0:00:41.4]} 34. fxg6+ {[%clk 0:00:17.6]}
34... Kxg6 {[%clk 0:00:40.5]} 35. Qxe8+ {[%clk 0:00:16.7]} 35... Rxe8 {[%clk
0:00:41.4]} 36. Rxe8 {[%clk 0:00:16.7]} 36... Qc5+ {[%clk 0:00:41.8]} 37. Kg2
{[%clk 0:00:06.1]} 37... Qf2+ {[%clk 0:00:40]} 38. Kh1 {[%clk 0:00:07]} 38...
Qf3+ {[%clk 0:00:40.2]} 39. Kh2 {[%clk 0:00:06.8]} 39... Qxd1 {[%clk 0:00:38.2]}
40. Bd4 {[%clk 0:00:02.3]} 40... Qd2+ {[%clk 0:00:34.9]} 41. Kh1 {[%clk
0:00:02.3]} 41... Nf4 {[%clk 0:00:29.8]} 42. Rg8+ {[%clk 0:00:01.4]} 42... Kf5
{[%clk 0:00:29.5]} 43. Rf8+ {[%clk 0:00:01.4]} 43... Ke4 {[%clk 0:00:29.2]} 44.
Re8+ {[%clk 0:00:01.9]} 44... Kd3 {[%clk 0:00:28.1]} 45. Re3+ {[%clk 0:00:02.2]}
45... Kc2 {[%clk 0:00:24.5]} 46. Rg3 {[%clk 0:00:02.2]} 46... Qxd4 {[%clk
0:00:24.3]} 47. g6 {[%clk 0:00:02.3]} 47... Qe4+ {[%clk 0:00:23.2]} 48. Kh2
{[%clk 0:00:03.2]} 48... Nxg6 {[%clk 0:00:19.2]} 49. Rg2+ {[%clk 0:00:03.3]}
49... Kb1 {[%clk 0:00:19.3]} 50. Rg5 {[%clk 0:00:03.3]} 50... Qf4+ {[%clk
0:00:19]} 51. Rg3 {[%clk 0:00:03.8]} 51... h4 {[%clk 0:00:19.2]} 0-1

[Event "*** Titled Tuesday Blitz"]
[Site "Chess.com"]
[Date "2021.03.09"]
[Round "11"]
[White "GoltsevDmitry2000"]
[Black "Bodnar_Mykola"]
[Result "1-0"]
[WhiteElo "2689"]
[BlackElo "2502"]
[TimeControl "180+1"]
[EndTime "12:10:14 PST"]
[Termination "GoltsevDmitry2000 won by resignation"]

1. e4 {[%clk 0:02:59.8]} 1... e5 {[%clk 0:02:59.8]} 2. Nf3 {[%clk 0:03:00.4]}
2... Nc6 {[%clk 0:03:00]} 3. Bb5 {[%clk 0:03:00.3]} 3... a6 {[%clk 0:02:59.6]}
4. Ba4 {[%clk 0:02:59.9]} 4... Bc5 {[%clk 0:02:59.8]} 5. O-O {[%clk 0:03:00.3]}
5... Nge7 {[%clk 0:02:59.5]} 6. Nxe5 {[%clk 0:03:00.2]} 6... Nxe5 {[%clk
0:02:59.6]} 7. d4 {[%clk 0:03:00.8]} 7... b5 {[%clk 0:02:59.7]} 8. Bb3 {[%clk
0:03:00.8]} 8... Bxd4 {[%clk 0:02:59]} 9. Qxd4 {[%clk 0:03:01.2]} 9... d6 {[%clk
0:02:59.5]} 10. c3 {[%clk 0:03:01.5]} 10... c5 {[%clk 0:02:59.6]} 11. Qe3 {[%clk
0:03:01.5]} 11... O-O {[%clk 0:02:58]} 12. Nd2 {[%clk 0:03:02]} 12... Bb7 {[%clk
0:02:57.4]} 13. Bc2 {[%clk 0:03:02.1]} 13... N7g6 {[%clk 0:02:52.3]} 14. Nf3
{[%clk 0:03:01.6]} 14... Nxf3+ {[%clk 0:02:45.6]} 15. Qxf3 {[%clk 0:03:02.5]}
15... d5 {[%clk 0:02:46.1]} 16. exd5 {[%clk 0:03:02.2]} 16... Qxd5 {[%clk
0:02:47]} 17. Qxd5 {[%clk 0:03:02.1]} 17... Bxd5 {[%clk 0:02:47.9]} 18. Be3
{[%clk 0:03:03]} 18... c4 {[%clk 0:02:46.6]} 19. Rfd1 {[%clk 0:03:03.5]} 19...
Rad8 {[%clk 0:02:46.6]} 20. a4 {[%clk 0:03:03]} 20... Ne5 {[%clk 0:02:40.3]} 21.
axb5 {[%clk 0:03:02.1]} 21... axb5 {[%clk 0:02:41.2]} 22. Bb6 {[%clk 0:02:51.7]}
22... Rd7 {[%clk 0:02:37.2]} 23. Rd4 {[%clk 0:02:45.4]} 23... g6 {[%clk
0:02:19.8]} 24. Rad1 {[%clk 0:02:44]} 24... Bc6 {[%clk 0:02:17.7]} 25. Rd6
{[%clk 0:02:41.4]} 25... Rxd6 {[%clk 0:02:07.1]} 26. Rxd6 {[%clk 0:02:42.3]}
26... Ra8 {[%clk 0:02:08]} 27. f4 {[%clk 0:02:40]} 27... Ng4 {[%clk 0:02:03.8]}
28. Bd1 {[%clk 0:02:31.5]} 28... Ra1 {[%clk 0:01:39.9]} 29. h3 {[%clk
0:02:31.7]} 29... Nf6 {[%clk 0:01:32]} 30. Kh2 {[%clk 0:02:31.8]} 30... Ne4
{[%clk 0:01:02.6]} 31. Rd8+ {[%clk 0:02:05.5]} 31... Kg7 {[%clk 0:00:59.4]} 32.
Bf3 {[%clk 0:02:06.4]} 32... f5 {[%clk 0:00:55.5]} 33. Bd4+ {[%clk 0:02:06.2]}
33... Kf7 {[%clk 0:00:54.5]} 34. Rc8 {[%clk 0:02:04.9]} 34... Bd7 {[%clk
0:00:49.4]} 35. Rc7 {[%clk 0:02:04.2]} 35... Ke6 {[%clk 0:00:45.5]} 36. Rb7
{[%clk 0:02:02.1]} 36... Rb1 {[%clk 0:00:41]} 37. Rb6+ {[%clk 0:02:02.1]} 37...
Ke7 {[%clk 0:00:31.6]} 38. Be2 {[%clk 0:02:02.1]} 38... Kd8 {[%clk 0:00:21.7]}
39. Be5 {[%clk 0:02:00.6]} 39... Ke7 {[%clk 0:00:16.2]} 40. h4 {[%clk
0:01:56.7]} 40... Re1 {[%clk 0:00:13.9]} 41. Bf3 {[%clk 0:01:56.2]} 41... Rb1
{[%clk 0:00:13.8]} 42. h5 {[%clk 0:01:55]} 42... gxh5 {[%clk 0:00:14]} 43. Rh6
{[%clk 0:01:55.1]} 43... Rxb2 {[%clk 0:00:14.1]} 44. Rxh7+ {[%clk 0:01:55.6]}
44... Kd8 {[%clk 0:00:14.1]} 45. Bxh5 {[%clk 0:01:56.2]} 45... Bc6 {[%clk
0:00:10.7]} 46. Bf3 {[%clk 0:01:56.2]} 46... Bd7 {[%clk 0:00:07.6]} 47. Rh8+
{[%clk 0:01:55.1]} 47... Ke7 {[%clk 0:00:07.7]} 48. Rb8 {[%clk 0:01:55.3]} 48...
Rc2 {[%clk 0:00:06.2]} 49. Rb7 {[%clk 0:01:53]} 49... Ke6 {[%clk 0:00:05.9]} 50.
Kh3 {[%clk 0:01:48.6]} 50... Nxc3 {[%clk 0:00:05.9]} 51. g4 {[%clk 0:01:49.1]}
51... Ne4 {[%clk 0:00:03.9]} 52. gxf5+ {[%clk 0:01:48.7]} 52... Ke7 {[%clk
0:00:03.3]} 53. Bxe4 {[%clk 0:01:47.8]} 53... Re2 {[%clk 0:00:04.2]} 54. Bc6
{[%clk 0:01:47.6]} 54... Rd2 {[%clk 0:00:04.8]} 55. Kg3 {[%clk 0:01:44.5]} 55...
Rd3+ {[%clk 0:00:04.8]} 56. Kg4 {[%clk 0:01:44.3]} 56... c3 {[%clk 0:00:04.2]}
57. Bxb5 {[%clk 0:01:44.2]} 57... c2 {[%clk 0:00:04.1]} 58. Rc7 {[%clk 0:01:37]}
58... c1=Q {[%clk 0:00:03.6]} 59. Rxc1 {[%clk 0:01:37.9]} 59... Bxb5 {[%clk
0:00:03.9]} 60. Rc7+ {[%clk 0:01:38]} 60... Bd7 {[%clk 0:00:04.2]} 61. Kh4
{[%clk 0:01:37.5]} 61... Kd8 {[%clk 0:00:03.5]} 62. f6 {[%clk 0:01:36]} 62...
Rh3+ {[%clk 0:00:03.2]} 63. Kg5 {[%clk 0:01:36.4]} 63... Ke8 {[%clk 0:00:03.8]}
64. f7+ {[%clk 0:01:33.9]} 64... Ke7 {[%clk 0:00:04]} 65. f8=Q+ {[%clk
0:01:34.3]} 65... Kxf8 {[%clk 0:00:04.4]} 66. Rxd7 {[%clk 0:01:34.9]} 66... Rg3+
{[%clk 0:00:05]} 67. Kf6 {[%clk 0:01:35.2]} 67... Kg8 {[%clk 0:00:04.7]} 68. Ke6
{[%clk 0:01:33.6]} 68... Rg6+ {[%clk 0:00:04.5]} 69. Bf6 {[%clk 0:01:33.8]}
69... Rg1 {[%clk 0:00:02.5]} 70. Rd8+ {[%clk 0:01:34.2]} 70... Kh7 {[%clk
0:00:03]} 71. Rh8+ {[%clk 0:01:35.1]} 71... Kg6 {[%clk 0:00:03.7]} 72. Rg8+
{[%clk 0:01:36]} 72... Kh7 {[%clk 0:00:04.2]} 73. Rxg1 {[%clk 0:01:36.5]} 1-0